[Event "DVM U10 2024"]
[Site "Duesseldorf"]
[Date "2024.12.27"]
[Round "3"]
[White "Guan, Guoyou"]
[Black "Glaser-Gallion, Leonas"]
[Result "1-0"]
[ECO "C56"]
[WhiteElo "1128"]
[BlackElo "1000"]
[Annotator "NA RC"]
[PlyCount "61"]
[EventDate "2024.12.23"]
[EventType "team-tourn"]
[EventRounds "7"]
[EventCountry "GER"]
[SourceTitle "playchess.com"]
[Source "ChessBase"]
[SourceQuality "1"]
[TimeControl "3300+5"]

1. e4 {[%emt 0:00:02]} e5 {[%emt 0:00:02]} 2. Nf3 {[%emt 0:00:06]} Nc6 {[%emt 0:00:09]} 3. d4 {[%emt 0:00:10]} exd4 {[%emt 0:00:32]} 4. Bc4 {[%emt 0:00:12]} Bc5 {[%emt 0:00:24]} 5. c3 {[%emt 0:00:05]} Nf6 {[%emt 0:00:20]} 6. O-O {[%emt 0:00:16]} Nxe4 {[%emt 0:00:41]} 7. cxd4 {[%emt 0:00:10]} Bb6 {[%emt 0:00:13]} 8. Re1 {[%emt 0:00:17]} d5 {[%emt 0:00:53]} 9. Bxd5 {[%emt 0:00:14]} Qxd5 {[%emt 0:00:15]} 10. Nc3 {[%emt 0:00:10]} Qd8 {[%emt 0:01:17]} 11. Nxe4 {[%emt 0:00:17]} O-O {[%emt 0:00:12]} 12. Be3 {[%emt 0:00:09]} Re8 {[%emt 0:00:29]} 13. Ng3 {[%emt 0:00:30]} Bg4 {[%emt 0:00:24]} 14. d5 {[%emt 0:00:33]} Ne7 {[%emt 0:01:40]} 15. Bxb6 {[%emt 0:00:14]} axb6 {[%emt 0:00:15]} 16. d6 {[%emt 0:00:37]} cxd6 {[%emt 0:00:16]} 17. Qb3 {[%emt 0:00:25]} d5 {[%emt 0:00:41]} 18. Ne5 {[%emt 0:00:32]} Be6 {[%emt 0:00:34]} 19. Rac1 {[%emt 0:00:47]} d4 {[%emt 0:00:25]} 20. Qf3 {[%emt 0:00:26]} Nc6 {[%emt 0:01:05]} 21. Nxc6 {[%emt 0:00:27]} bxc6 {[%emt 0:00:13]} 22. Rxc6 {[%emt 0:01:01]} Qd7 {[%emt 0:01:51]} 23. a3 {[%emt 0:00:18]} Bd5 {[%emt 0:00:12]} 24. Rxe8+ {[%emt 0:00:29]} Rxe8 {[%emt 0:00:08]} 25. Rc7 {[%emt 0:00:37]} Re1+ {[%emt 0:00:49]} 26. Nf1 {[%emt 0:00:43]} Rxf1+ {[%emt 0:01:07]} 27. Kxf1 {[%emt 0:00:23]} Qb5+ {[%emt 0:00:20]} 28. Qe2 {[%emt 0:00:16]} Bxg2+ {[%emt 0:00:11]} 29. Kxg2 {[%emt 0:00:14]} Qxe2 {[%emt 0:00:10]} 30. Rc8+ {[%emt 0:00:07]} Qe8 {[%emt 0:00:12]} 31. Rxe8# {[%emt 0:00:05]} 1-0

[Event "DVM U10 2024"]
[Site "Duesseldorf"]
[Date "2024.12.27"]
[Round "3"]
[White "Ju, Eric Zirui"]
[Black "Yuksel, Arda Eren"]
[Result "1-0"]
[ECO "C50"]
[WhiteElo "1126"]
[BlackElo "1488"]
[Annotator "NA RC"]
[PlyCount "57"]
[EventDate "2024.12.23"]
[EventType "team-tourn"]
[EventRounds "7"]
[EventCountry "GER"]
[SourceTitle "playchess.com"]
[Source "ChessBase"]
[SourceQuality "1"]
[TimeControl "3300+5"]

1. e4 {[%emt 0:00:02]} e5 {[%emt 0:00:10]} 2. Nf3 {[%emt 0:00:05]} Nc6 {[%emt 0:00:07]} 3. d4 {[%emt 0:00:08]} exd4 {[%emt 0:00:45]} 4. Bc4 {[%emt 0:00:13]} h6 {[%emt 0:00:57]} 5. Nxd4 {[%emt 0:00:35]} Nxd4 {[%emt 0:00:46]} 6. Qxd4 {[%emt 0:00:24]} c6 {[%emt 0:01:24]} 7. O-O {[%emt 0:00:50]} Be7 {[%emt 0:01:34]} 8. Qxg7 {[%emt 0:00:52]} d5 {[%emt 0:00:48]} 9. Qxh8 {[%emt 0:00:45]} Kf8 {[%emt 0:00:21]} 10. Bxh6+ {[%emt 0:01:02]} Ke8 {[%emt 0:00:00]} 11. Qxg8+ {[%emt 0:00:36]} Kd7 {[%emt 0:00:11]} 12. Qxd8+ {[%emt 0:00:26]} Kxd8 {[%emt 0:00:13]} 13. exd5 {[%emt 0:00:47]} cxd5 {[%emt 0:00:11]} 14. Bxd5 {[%emt 0:00:14]} Bf6 {[%emt 0:00:53]} 15. Nc3 {[%emt 0:00:37]} Bxc3 {[%emt 0:00:45]} 16. bxc3 {[%emt 0:00:17]} f5 {[%emt 0:00:58]} 17. Rad1 {[%emt 0:00:21]} Ke7 {[%emt 0:00:20]} 18. Bg7 {[%emt 0:00:26]} Be6 {[%emt 0:00:43]} 19. Rfe1 {[%emt 0:00:40]} Kf7 {[%emt 0:00:24]} 20. Bxe6+ {[%emt 0:00:53]} Kxg7 {[%emt 0:00:07]} 21. Rd7+ {[%emt 0:00:30]} Kf6 {[%emt 0:00:32]} 22. Rf7+ {[%emt 0:00:47]} Kg6 {[%emt 0:00:15]} 23. Re3 {[%emt 0:00:31]} Rh8 {[%emt 0:00:31]} 24. Rg3+ {[%emt 0:00:31]} Kh6 {[%emt 0:00:13]} 25. Rh3+ {[%emt 0:00:12]} Kg6 {[%emt 0:00:20]} 26. Rxh8 {[%emt 0:00:24]} Kg5 {[%emt 0:00:14]} 27. Rg8+ {[%emt 0:00:40]} Kh6 {[%emt 0:00:11]} 28. Bxf5 {[%emt 0:00:38]} Kh5 {[%emt 0:00:14]} 29. Rh7# {[%emt 0:00:14]} 1-0

[Event "DVM U10 2024"]
[Site "Duesseldorf"]
[Date "2024.12.27"]
[Round "3"]
[White "Balla, Virinchi"]
[Black "von Gehlen, Samuel"]
[Result "0-1"]
[ECO "B18"]
[WhiteElo "1123"]
[BlackElo "1459"]
[Annotator "NA RC"]
[PlyCount "98"]
[EventDate "2024.12.23"]
[EventType "team-tourn"]
[EventRounds "7"]
[EventCountry "GER"]
[SourceTitle "playchess.com"]
[Source "ChessBase"]
[SourceQuality "1"]
[TimeControl "3300+5"]

1. e4 {[%emt 0:00:02]} c6 {[%emt 0:00:16]} 2. d4 {[%emt 0:00:16]} d5 {[%emt 0:00:03]} 3. Nc3 {[%emt 0:01:11]} dxe4 {[%emt 0:00:09]} 4. Nxe4 {[%emt 0:00:13]} Bf5 {[%emt 0:00:11]} 5. Ng3 {[%emt 0:00:10]} Bg6 {[%emt 0:00:26]} 6. Nf3 {[%emt 0:00:28]} Nf6 {[%emt 0:00:17]} 7. Bf4 {[%emt 0:02:22]} Nd5 {[%emt 0:00:53]} 8. Be3 {[%emt 0:02:25]} Qb6 {[%emt 0:01:30]} 9. Rb1 {[%emt 0:03:30]} e6 {[%emt 0:00:30]} 10. a3 {[%emt 0:00:24]} c5 {[%emt 0:02:34]} 11. Bd3 {[%emt 0:03:27]} Nc6 {[%emt 0:02:16]} 12. Bxg6 {[%emt 0:00:00]} hxg6 {[%emt 0:00:40]} 13. c4 {[%emt 0:02:34]} Nxe3 {[%emt 0:02:07]} 14. fxe3 {[%emt 0:00:20]} O-O-O {[%emt 0:01:00]} 15. d5 {[%emt 0:02:10]} Qa6 {[%emt 0:01:54]} 16. Rc1 {[%emt 0:02:45]} Qa5+ {[%emt 0:00:30]} 17. Rc3 {[%emt 0:00:35]} Bd6 {[%emt 0:00:37]} 18. Ne2 {[%emt 0:03:06]} Rh5 {[%emt 0:02:01]} 19. e4 {[%emt 0:01:51]} Ne5 {[%emt 0:01:20]} 20. Ng3 {[%emt 0:04:57]} Nxf3+ {[%emt 0:00:36]} 21. Qxf3 {[%emt 0:00:33]} Rh4 {[%emt 0:02:46]} 22. O-O {[%emt 0:00:54]} f6 {[%emt 0:01:03]} 23. Rb3 {[%emt 0:06:45]} exd5 {[%emt 0:00:33]} 24. cxd5 {[%emt 0:00:31]} Re8 {[%emt 0:01:03]} 25. Re3 {[%emt 0:01:54]} c4 {[%emt 0:01:01]} 26. Rc1 {[%emt 0:01:13]} Kb8 {[%emt 0:01:12]} 27. Rxc4 {[%emt 0:01:01]} Bc5 {[%emt 0:00:07]} 28. Nf1 {[%emt 0:02:03]} Bxe3+ {[%emt 0:01:07]} 29. Nxe3 {[%emt 0:00:11]} Qe1+ {[%emt 0:00:53]} 30. Nf1 {[%emt 0:00:36]} Rhxe4 {[%emt 0:00:36]} 31. Rxe4 {[%emt 0:01:11]} Qxe4 {[%emt 0:00:19]} 32. Qg3+ {[%emt 0:00:30]} Qe5 {[%emt 0:00:31]} 33. Qxg6 {[%emt 0:00:43]} Qd4+ {[%emt 0:01:53]} 34. Kh1 {[%emt 0:00:41]} Re1 {[%emt 0:00:25]} 35. Qg3+ {[%emt 0:00:08]} Qe5 {[%emt 0:00:18]} 36. Qxe5+ {[%emt 0:00:13]} Rxe5 {[%emt 0:00:07]} 37. g3 {[%emt 0:00:16]} Rxd5 {[%emt 0:00:14]} 38. Ne3 {[%emt 0:00:09]} Rd2 {[%emt 0:00:15]} 39. Nc4 {[%emt 0:00:06]} Rc2 {[%emt 0:00:15]} 40. b3 {[%emt 0:00:15]} Rc3 {[%emt 0:00:12]} 41. Nd2 {[%emt 0:00:10]} Rd3 {[%emt 0:00:21]} 42. Nc4 {[%emt 0:00:12]} Rxb3 {[%emt 0:00:10]} 43. Kg2 {[%emt 0:00:21]} Rc3 {[%emt 0:00:12]} 44. Nd6 {[%emt 0:00:13]} Rxa3 {[%emt 0:00:31]} 45. Nf5 {[%emt 0:00:07]} g6 {[%emt 0:00:10]} 46. Nh4 {[%emt 0:00:12]} g5 {[%emt 0:00:16]} 47. Nf5 {[%emt 0:00:04]} b5 {[%emt 0:00:16]} 48. Nd4 {[%emt 0:00:11]} b4 {[%emt 0:00:15]} 49. Nc2 {[%emt 0:00:08]} Ra2 {[%emt 0:00:11]} 0-1

[Event "DVM U10 2024"]
[Site "Duesseldorf"]
[Date "2024.12.27"]
[Round "3"]
[White "Goyush, Shams"]
[Black "Breaz, Arthur"]
[Result "0-1"]
[ECO "C50"]
[WhiteElo "1122"]
[BlackElo "1123"]
[Annotator "NA RC"]
[PlyCount "114"]
[EventDate "2024.12.23"]
[EventType "team-tourn"]
[EventRounds "7"]
[EventCountry "GER"]
[SourceTitle "playchess.com"]
[Source "ChessBase"]
[SourceQuality "1"]
[TimeControl "3300+5"]

1. e4 {[%emt 0:00:02]} e5 {[%emt 0:00:08]} 2. Nf3 {[%emt 0:00:05]} Nc6 {[%emt 0:00:04]} 3. Bc4 {[%emt 0:00:11]} Bc5 {[%emt 0:00:06]} 4. Nc3 {[%emt 0:00:10]} Nf6 {[%emt 0:00:13]} 5. d3 {[%emt 0:00:07]} O-O {[%emt 0:00:07]} 6. Bg5 {[%emt 0:00:04]} h6 {[%emt 0:00:02]} 7. Bh4 {[%emt 0:00:11]} d6 {[%emt 0:00:21]} 8. Nd5 {[%emt 0:00:08]} Bg4 {[%emt 0:00:42]} 9. h3 {[%emt 0:00:11]} Bxf3 {[%emt 0:00:26]} 10. Qxf3 {[%emt 0:00:10]} Nd4 {[%emt 0:00:09]} 11. Qd1 {[%emt 0:01:49]} g5 {[%emt 0:00:57]} 12. Bg3 {[%emt 0:07:07]} c6 {[%emt 0:01:37]} 13. Nxf6+ {[%emt 0:00:21]} Qxf6 {[%emt 0:00:08]} 14. c3 {[%emt 0:01:47]} Ne6 {[%emt 0:00:11]} 15. O-O {[%emt 0:00:27]} b5 {[%emt 0:01:17]} 16. Bb3 {[%emt 0:02:34]} Rad8 {[%emt 0:00:36]} 17. h4 {[%emt 0:03:28]} d5 {[%emt 0:01:51]} 18. Qe2 {[%emt 0:08:45]} Nf4 {[%emt 0:01:19]} 19. Qf3 {[%emt 0:05:04]} Nh3+ {[%emt 0:00:08]} 20. Kh2 {[%emt 0:00:45]} Qxf3 {[%emt 0:01:02]} 21. gxf3 {[%emt 0:00:37]} gxh4 {[%emt 0:01:41]} 22. Bxh4 {[%emt 0:00:29]} Ng5 {[%emt 0:00:11]} 23. Rg1 {[%emt 0:01:29]} f6 {[%emt 0:00:15]} 24. d4 {[%emt 0:02:46]} exd4 {[%emt 0:00:04]} 25. f4 {[%emt 0:01:00]} Kh7 {[%emt 0:01:20]} 26. fxg5 {[%emt 0:00:34]} fxg5 {[%emt 0:00:08]} 27. Bg3 {[%emt 0:01:04]} dxc3 {[%emt 0:00:01]} 28. bxc3 {[%emt 0:00:45]} Bxf2 {[%emt 0:00:12]} 29. Bxf2 {[%emt 0:00:23]} Rxf2+ {[%emt 0:00:29]} 30. Rg2 {[%emt 0:00:20]} Rxg2+ {[%emt 0:00:01]} 31. Kxg2 {[%emt 0:00:16]} dxe4 {[%emt 0:00:07]} 32. Rd1 {[%emt 0:00:27]} Rxd1 {[%emt 0:01:06]} 33. Bxd1 {[%emt 0:00:16]} Kg6 {[%emt 0:00:05]} 34. Bc2 {[%emt 0:00:18]} Kf5 {[%emt 0:00:05]} 35. Kg3 {[%emt 0:00:55]} h5 {[%emt 0:00:45]} 36. Kf2 {[%emt 0:00:38]} Kf4 {[%emt 0:01:12]} 37. Bd1 {[%emt 0:01:13]} e3+ {[%emt 0:00:00]} 38. Ke1 {[%emt 0:00:35]} g4 {[%emt 0:00:00]} 39. Kf1 {[%emt 0:00:59]} h4 {[%emt 0:00:06]} 40. Kg1 {[%emt 0:03:20]} h3 {[%emt 0:00:08]} 41. Kh2 {[%emt 0:00:58]} Ke4 {[%emt 0:01:05]} 42. Bxg4 {[%emt 0:00:35]} Kd3 {[%emt 0:00:02]} 43. Kxh3 {[%emt 0:01:13]} Kxc3 {[%emt 0:00:08]} 44. Kg3 {[%emt 0:00:17]} Kd2 {[%emt 0:00:06]} 45. Kf4 {[%emt 0:00:40]} c5 {[%emt 0:00:15]} 46. Ke4 {[%emt 0:00:07]} c4 {[%emt 0:00:05]} 47. Kd5 {[%emt 0:00:19]} c3 {[%emt 0:00:02]} 48. Kc5 {[%emt 0:00:26]} c2 {[%emt 0:00:06]} 49. Kxb5 {[%emt 0:00:09]} c1=Q {[%emt 0:00:08]} 50. Ka6 {[%emt 0:00:09]} Qb2 {[%emt 0:00:15]} 51. Kxa7 {[%emt 0:00:22]} Kc3 {[%emt 0:00:07]} 52. a4 {[%emt 0:00:11]} Kd4 {[%emt 0:00:07]} 53. a5 {[%emt 0:00:03]} Kc5 {[%emt 0:00:04]} 54. Be2 {[%emt 0:00:39]} Kd6 {[%emt 0:00:21]} 55. a6 {[%emt 0:00:11]} Kc7 {[%emt 0:00:04]} 56. Bb5 {[%emt 0:00:38]} Qxb5 {[%emt 0:00:09]} 57. Ka8 {[%emt 0:00:06]} Qb8# {[%emt 0:00:41]} 0-1

[Event "DVM U10 2024"]
[Site "Duesseldorf"]
[Date "2024.12.27"]
[Round "3"]
[White "Naveen, Yuvaan"]
[Black "Fredrich, Tarje"]
[Result "1-0"]
[ECO "D00"]
[WhiteElo "1110"]
[BlackElo "1056"]
[Annotator "NA RC"]
[PlyCount "59"]
[EventDate "2024.12.23"]
[EventType "team-tourn"]
[EventRounds "7"]
[EventCountry "GER"]
[SourceTitle "playchess.com"]
[Source "ChessBase"]
[SourceQuality "1"]
[TimeControl "3300+5"]

1. d4 {[%emt 0:00:02]} d5 {[%emt 0:00:09]} 2. Bf4 {[%emt 0:00:08]} Nc6 {[%emt 0:00:13]} 3. e3 {[%emt 0:00:08]} a6 {[%emt 0:00:43]} 4. c3 {[%emt 0:00:00]} Nf6 {[%emt 0:00:35]} 5. Nd2 {[%emt 0:00:05]} e6 {[%emt 0:00:11]} 6. Ngf3 {[%emt 0:00:12]} Bd6 {[%emt 0:00:18]} 7. Bg3 {[%emt 0:00:12]} O-O {[%emt 0:00:16]} 8. Bd3 {[%emt 0:00:13]} Re8 {[%emt 0:00:39]} 9. Ne5 {[%emt 0:00:03]} Bd7 {[%emt 0:00:54]} 10. Qc2 {[%emt 0:00:38]} Qe7 {[%emt 0:00:21]} 11. Bh4 {[%emt 0:00:18]} Rad8 {[%emt 0:00:36]} 12. Bxh7+ {[%emt 0:00:19]} Kf8 {[%emt 0:01:16]} 13. f4 {[%emt 0:00:08]} Bxe5 {[%emt 0:00:49]} 14. fxe5 {[%emt 0:00:02]} Rc8 {[%emt 0:01:12]} 15. exf6 {[%emt 0:00:19]} gxf6 {[%emt 0:00:44]} 16. Rf1 {[%emt 0:00:14]} Qd6 {[%emt 0:00:25]} 17. Bxf6 {[%emt 0:00:15]} Qxh2 {[%emt 0:00:27]} 18. Bg6 {[%emt 0:00:17]} Qg3+ {[%emt 0:00:44]} 19. Kd1 {[%emt 0:00:52]} fxg6 {[%emt 0:00:25]} 20. Bh4+ {[%emt 0:00:19]} Kg7 {[%emt 0:00:50]} 21. Bxg3 {[%emt 0:00:00]} e5 {[%emt 0:00:18]} 22. dxe5 {[%emt 0:00:21]} Nxe5 {[%emt 0:00:52]} 23. Bxe5+ {[%emt 0:00:01]} Rxe5 {[%emt 0:00:14]} 24. Qd3 {[%emt 0:00:12]} Bf5 {[%emt 0:00:25]} 25. Qd4 {[%emt 0:00:10]} Kf6 {[%emt 0:00:30]} 26. Nf3 {[%emt 0:00:05]} Rce8 {[%emt 0:00:12]} 27. Nxe5 {[%emt 0:00:07]} Rxe5 {[%emt 0:02:00]} 28. g4 {[%emt 0:00:08]} c5 {[%emt 0:00:56]} 29. Qxc5 {[%emt 0:00:01]} Kg5 {[%emt 0:00:24]} 30. gxf5 {[%emt 0:00:05]} 1-0

[Event "DVM U10 2024"]
[Site "Duesseldorf"]
[Date "2024.12.27"]
[Round "3"]
[White "Tschötsch, Hugo"]
[Black "Heinig, Arvid"]
[Result "1-0"]
[ECO "D06"]
[WhiteElo "1110"]
[BlackElo "1039"]
[Annotator "NA RC"]
[PlyCount "91"]
[EventDate "2024.12.23"]
[EventType "team-tourn"]
[EventRounds "7"]
[EventCountry "GER"]
[SourceTitle "playchess.com"]
[Source "ChessBase"]
[SourceQuality "1"]
[TimeControl "3300+5"]

1. d4 {[%emt 0:00:02]} d5 {[%emt 0:00:03]} 2. c4 {[%emt 0:00:04]} Nf6 {[%emt 0:00:12]} 3. cxd5 {[%emt 0:00:06]} Nxd5 {[%emt 0:00:34]} 4. e4 {[%emt 0:00:04]} Nb6 {[%emt 0:00:55]} 5. Nc3 {[%emt 0:00:08]} Nc6 {[%emt 0:01:03]} 6. Nf3 {[%emt 0:00:11]} Bg4 {[%emt 0:00:37]} 7. Bb5 {[%emt 0:00:07]} a6 {[%emt 0:01:30]} 8. Bxc6+ {[%emt 0:00:05]} bxc6 {[%emt 0:00:22]} 9. O-O {[%emt 0:00:23]} e6 {[%emt 0:01:04]} 10. h3 {[%emt 0:00:23]} Bh5 {[%emt 0:00:40]} 11. Be3 {[%emt 0:00:23]} Be7 {[%emt 0:01:13]} 12. g4 {[%emt 0:08:07]} Bg6 {[%emt 0:00:29]} 13. Ne5 {[%emt 0:00:17]} Qd6 {[%emt 0:04:25]} 14. Bf4 {[%emt 0:01:27]} Qd8 {[%emt 0:04:19]} 15. Nxc6 {[%emt 0:00:11]} Qc8 {[%emt 0:00:54]} 16. Nxe7 {[%emt 0:00:28]} Kxe7 {[%emt 0:00:33]} 17. Qe2 {[%emt 0:03:22]} Kf8 {[%emt 0:01:08]} 18. Rac1 {[%emt 0:01:56]} h5 {[%emt 0:01:39]} 19. g5 {[%emt 0:00:57]} e5 {[%emt 0:01:06]} 20. Bxe5 {[%emt 0:00:49]} Qxh3 {[%emt 0:00:22]} 21. Bxc7 {[%emt 0:01:52]} Nc8 {[%emt 0:02:50]} 22. f4 {[%emt 0:02:21]} Qg3+ {[%emt 0:02:19]} 23. Qg2 {[%emt 0:00:41]} Qe3+ {[%emt 0:01:42]} 24. Qf2 {[%emt 0:00:19]} Qh3 {[%emt 0:00:37]} 25. f5 {[%emt 0:00:58]} Bh7 {[%emt 0:02:34]} 26. g6 {[%emt 0:02:22]} Qg4+ {[%emt 0:01:02]} 27. Qg2 {[%emt 0:00:11]} Qxg2+ {[%emt 0:00:25]} 28. Kxg2 {[%emt 0:00:08]} Bxg6 {[%emt 0:00:38]} 29. fxg6 {[%emt 0:00:11]} Rh6 {[%emt 0:00:28]} 30. gxf7 {[%emt 0:01:02]} Rf6 {[%emt 0:00:18]} 31. Be5 {[%emt 0:01:44]} Rg6+ {[%emt 0:00:14]} 32. Kh1 {[%emt 0:00:46]} Ra7 {[%emt 0:00:33]} 33. Rf5 {[%emt 0:01:20]} h4 {[%emt 0:00:49]} 34. Rh5 {[%emt 0:01:25]} Kxf7 {[%emt 0:01:00]} 35. Rf1+ {[%emt 0:01:14]} Kg8 {[%emt 0:00:43]} 36. Rxh4 {[%emt 0:02:17]} Rb7 {[%emt 0:00:35]} 37. b3 {[%emt 0:02:36]} Rbb6 {[%emt 0:00:53]} 38. Nd5 {[%emt 0:01:52]} Rbc6 {[%emt 0:00:56]} 39. Rhf4 {[%emt 0:01:28]} Rh6+ {[%emt 0:00:24]} 40. Kg2 {[%emt 0:00:24]} Rc2+ {[%emt 0:01:01]} 41. R4f2 {[%emt 0:01:22]} Rg6+ {[%emt 0:00:32]} 42. Bg3 {[%emt 0:00:39]} Rxf2+ {[%emt 0:00:26]} 43. Rxf2 {[%emt 0:00:16]} Nd6 {[%emt 0:00:16]} 44. Ne7+ {[%emt 0:00:13]} Kh7 {[%emt 0:00:15]} 45. Nxg6 {[%emt 0:00:05]} Kxg6 {[%emt 0:00:19]} 46. Bxd6 {[%emt 0:00:05]} 1-0

[Event "DVM U10 2024"]
[Site "Duesseldorf"]
[Date "2024.12.27"]
[Round "3"]
[White "Kirchgessner, Thomas"]
[Black "Pohlmann, Johannes Leon"]
[Result "0-1"]
[ECO "B20"]
[WhiteElo "1094"]
[BlackElo "1127"]
[Annotator "NA RC"]
[PlyCount "31"]
[EventDate "2024.12.23"]
[EventType "team-tourn"]
[EventRounds "7"]
[EventCountry "GER"]
[SourceTitle "playchess.com"]
[Source "ChessBase"]
[SourceQuality "1"]
[TimeControl "3300+5"]

1. e4 {[%emt 0:00:03]} c5 {[%emt 0:00:06]} 2. Nc3 {[%emt 0:00:09]} e6 {[%emt 0:00:08]} 3. Bc4 {[%emt 0:00:09]} Nc6 {[%emt 0:00:19]} 4. d3 {[%emt 0:00:16]} Be7 {[%emt 0:00:10]} 5. Bf4 {[%emt 0:00:00]} Nf6 {[%emt 0:00:46]} 6. Nf3 {[%emt 0:00:16]} d6 {[%emt 0:00:21]} 7. Qd2 {[%emt 0:00:36]} O-O {[%emt 0:00:15]} 8. O-O {[%emt 0:00:04]} a6 {[%emt 0:00:25]} 9. a3 {[%emt 0:02:47]} e5 {[%emt 0:00:54]} 10. Bg5 {[%emt 0:00:25]} Bg4 {[%emt 0:00:20]} 11. Qe3 {[%emt 0:00:19]} Nd4 {[%emt 0:00:46]} 12. Ne1 {[%emt 0:00:36]} h6 {[%emt 0:01:28]} 13. Bh4 {[%emt 0:00:06]} Be6 {[%emt 0:02:42]} 14. Bxe6 {[%emt 0:00:44]} fxe6 {[%emt 0:00:08]} 15. Ne2 {[%emt 0:00:11]} Ng4 {[%emt 0:03:03]} 16. Bxe7 {[%emt 0:00:28]} 0-1

[Event "DVM U10 2024"]
[Site "Duesseldorf"]
[Date "2024.12.27"]
[Round "3"]
[White "Chen, Aimée"]
[Black "Mayer, Frederik Eliot"]
[Result "1-0"]
[ECO "C50"]
[WhiteElo "1090"]
[BlackElo "1128"]
[Annotator "NA RC"]
[PlyCount "104"]
[EventDate "2024.12.23"]
[EventType "team-tourn"]
[EventRounds "7"]
[EventCountry "GER"]
[SourceTitle "playchess.com"]
[Source "ChessBase"]
[SourceQuality "1"]
[TimeControl "3300+5"]

1. e4 {[%emt 0:00:03]} e5 {[%emt 0:00:03]} 2. Nf3 {[%emt 0:00:07]} Nc6 {[%emt 0:00:05]} 3. Bc4 {[%emt 0:00:09]} Bc5 {[%emt 0:00:17]} 4. Nc3 {[%emt 0:00:08]} d6 {[%emt 0:00:36]} 5. h3 {[%emt 0:00:11]} Nf6 {[%emt 0:00:10]} 6. d3 {[%emt 0:00:05]} h6 {[%emt 0:00:13]} 7. O-O {[%emt 0:00:06]} O-O {[%emt 0:00:36]} 8. Be3 {[%emt 0:00:27]} Bb6 {[%emt 0:00:17]} 9. d4 {[%emt 0:00:55]} exd4 {[%emt 0:01:40]} 10. Nxd4 {[%emt 0:00:08]} Nxd4 {[%emt 0:01:08]} 11. Bxd4 {[%emt 0:00:08]} Bxd4 {[%emt 0:00:11]} 12. Qxd4 {[%emt 0:00:08]} Be6 {[%emt 0:00:26]} 13. Rfe1 {[%emt 0:00:20]} c5 {[%emt 0:00:39]} 14. Qd3 {[%emt 0:00:13]} Bxc4 {[%emt 0:00:31]} 15. Qxc4 {[%emt 0:00:06]} Re8 {[%emt 0:01:27]} 16. Rad1 {[%emt 0:00:42]} Qc7 {[%emt 0:00:34]} 17. Nb5 {[%emt 0:02:36]} Qe7 {[%emt 0:02:00]} 18. Nxd6 {[%emt 0:00:14]} Qe6 {[%emt 0:02:17]} 19. Qxe6 {[%emt 0:00:30]} Rxe6 {[%emt 0:00:31]} 20. e5 {[%emt 0:02:03]} Nd7 {[%emt 0:01:24]} 21. Nxb7 {[%emt 0:02:21]} Nxe5 {[%emt 0:00:24]} 22. Nxc5 {[%emt 0:00:15]} Re7 {[%emt 0:00:11]} 23. f4 {[%emt 0:00:48]} Rc8 {[%emt 0:00:26]} 24. Rxe5 {[%emt 0:01:28]} Rxe5 {[%emt 0:00:30]} 25. fxe5 {[%emt 0:00:08]} Rxc5 {[%emt 0:00:29]} 26. c3 {[%emt 0:00:46]} Rxe5 {[%emt 0:00:12]} 27. Kf2 {[%emt 0:01:09]} Re7 {[%emt 0:00:16]} 28. Re1 {[%emt 0:00:18]} Rb7 {[%emt 0:00:09]} 29. b4 {[%emt 0:00:18]} Rc7 {[%emt 0:00:12]} 30. Rc1 {[%emt 0:00:11]} Rc4 {[%emt 0:00:07]} 31. b5 {[%emt 0:01:44]} f6 {[%emt 0:00:26]} 32. Ke3 {[%emt 0:00:16]} Rc5 {[%emt 0:00:51]} 33. c4 {[%emt 0:00:17]} Kf7 {[%emt 0:00:17]} 34. a4 {[%emt 0:00:17]} Ke6 {[%emt 0:00:19]} 35. Ke4 {[%emt 0:00:23]} f5+ {[%emt 0:00:37]} 36. Kd4 {[%emt 0:00:11]} Kd6 {[%emt 0:00:08]} 37. a5 {[%emt 0:00:37]} g5 {[%emt 0:00:31]} 38. g3 {[%emt 0:00:26]} h5 {[%emt 0:01:01]} 39. Rb1 {[%emt 0:01:18]} Rc7 {[%emt 0:00:23]} 40. b6 {[%emt 0:00:19]} axb6 {[%emt 0:00:41]} 41. axb6 {[%emt 0:00:16]} Rb7 {[%emt 0:00:33]} 42. c5+ {[%emt 0:00:16]} Kc6 {[%emt 0:00:18]} 43. Ke5 {[%emt 0:00:54]} f4 {[%emt 0:01:52]} 44. gxf4 {[%emt 0:00:16]} gxf4 {[%emt 0:00:22]} 45. Kxf4 {[%emt 0:00:04]} Kxc5 {[%emt 0:00:22]} 46. Kg5 {[%emt 0:00:10]} Rxb6 {[%emt 0:00:20]} 47. Rxb6 {[%emt 0:00:07]} Kxb6 {[%emt 0:00:11]} 48. Kxh5 {[%emt 0:00:06]} Kc7 {[%emt 0:00:15]} 49. Kg6 {[%emt 0:00:06]} Kd7 {[%emt 0:00:10]} 50. h4 {[%emt 0:00:13]} Ke7 {[%emt 0:00:01]} 51. Kg7 {[%emt 0:00:16]} Ke6 {[%emt 0:01:03]} 52. h5 {[%emt 0:00:05]} Kf5 {[%emt 0:00:09]} 1-0